fUST/lending_fUST_20250510
["ID","MTS","AMOUNT","RATE_DAILY","PERIOD"]
[360527151,1746844231809,-724.5381377,9.059e-05,2]
[360527153,1746844231818,-300.0,9.059e-05,2]
[360527155,1746844231827,-2334.4157948,9.06e-05,2]
[360527177,1746844237825,-495.6846524,9.058e-05,2]
[360527178,1746844237834,-375.87718847,9.059e-05,2]
[360527179,1746844237844,-500.0,9.059e-05,2]
[360527180,1746844237853,-228.58667005,9.059e-05,2]
[360527181,1746844237862,-2651.70508321,9.06e-05,2]
[360527182,1746844237886,-19419.66854269,9.06e-05,2]
[360527183,1746844237896,-1000.0,9.359e-05,2]
[360527184,1746844237905,-1838.89380689,9.359e-05,2]
[360527185,1746844237915,-264.10576056,9.359e-05,2]
[360527186,1746844237924,-1765.6697823,9.725e-05,2]
[360527187,1746844237939,-13283.99,0.0001,2]
[360527188,1746844237958,-180.27534096,0.00010138,2]
[360527189,1746844237977,-3987.43757052,0.000102,2]
[360527190,1746844237986,-3987.43757052,0.000102,2]
[360527191,1746844237997,-3987.43757052,0.000102,2]
[360527192,1746844238006,-3562.69151497,0.00010238,2]
[360528606,1746844948516,-280.18309165,9.053e-05,2]
[360528607,1746844963445,-268.80423239,8.962e-05,2]
[360528611,1746845189271,-224.59840198,8.952e-05,2]
[360528612,1746845189296,-1.09319381,9.051e-05,2]
[360528613,1746845247259,-193.25966217,8.852e-05,2]
[360528614,1746845251435,-32.43193362,8.852e-05,2]
[360528615,1746845251632,148.29678864,8.764e-05,2]
[360528616,1746845264613,-109.84860915,8.764e-05,2]
[360528617,1746845267731,-167.59908893,8.676e-05,2]
[360528618,1746845278428,-13.12963333,8.676e-05,2]
[360528656,1746845431965,-277.44769808,8.96e-05,2]
[360528658,1746845431974,-500.0,9.049e-05,2]
[360528660,1746845431983,-274.52166339,9.049e-05,2]
[360528662,1746845431993,-1000.0,9.258e-05,2]
[360528664,1746845432002,-1761.7854661,9.534e-05,2]
[360528666,1746845432011,-1200.0,9.604e-05,2]
[360528668,1746845432024,-3570.409197,9.605e-05,2]
[360528670,1746845432034,-300.0,9.999e-05,2]
[360528672,1746845432043,-1000.83,0.0001,2]
[360528674,1746845432053,-278.77730633,0.00010199,2]
[360528676,1746845432062,-300.0,0.00010199,2]
[360528678,1746845432071,-300.0,0.00010199,2]
[360528679,1746845432080,-300.0,0.00010199,2]
[360528681,1746845432090,-300.0,0.00010199,2]
[360528683,1746845432100,-3532.42040424,0.000102,2]
[360528685,1746845432109,-3532.42040403,0.000102,2]
[360528687,1746845432118,-3532.42040403,0.00010245,2]
[360528689,1746845432127,-160.0,0.00010353,2]
[360528691,1746845432136,-160.0,0.00010353,2]
[360528693,1746845432145,-3003.72994601,0.00010417,2]
[360528696,1746845432157,-385.83333708,0.00010417,2]
[360528698,1746845432169,-142.85712094,0.00010417,2]
[360528700,1746845432178,-338.98856929,0.00010538,2]
[360528842,1746845438031,-1000.0,8.86e-05,2]
[360528843,1746845438040,-537.52100978,9.998e-05,2]
[360528844,1746845438050,-562.4826464,9.998e-05,2]
[360528845,1746845438060,-537.52100978,9.998e-05,2]
[360528846,1746845438070,-537.52100978,9.998e-05,2]
[360528847,1746845438079,-537.52100978,9.998e-05,2]
[360528848,1746845438089,-537.52100978,9.998e-05,2]
[360528849,1746845438099,-537.52100978,9.998e-05,2]
[360528850,1746845438108,-537.52100978,9.998e-05,2]
[360528851,1746845438118,-537.52100978,9.998e-05,2]
[360528852,1746845438127,-537.52100978,9.998e-05,2]
[360528853,1746845438137,-537.52100978,9.998e-05,2]
[360528854,1746845438146,-537.52100978,9.998e-05,2]
[360528855,1746845438155,-537.52100978,9.998e-05,2]
[360528856,1746845438164,-537.52100978,9.998e-05,2]
[360528857,1746845438174,-537.52100978,9.998e-05,2]
[360528858,1746845438184,-537.52100978,9.998e-05,2]
[360528859,1746845438194,-537.52100978,9.998e-05,2]
[360528860,1746845438203,-537.52100978,9.998e-05,2]
[360528861,1746845438213,-537.52100978,9.998e-05,2]
[360528862,1746845438222,-537.52100978,9.998e-05,2]
[360528863,1746845438231,-404.0,0.00010468,2]
[360528864,1746845438241,-1420.20584585,0.00010538,2]
[360528865,1746845438250,-1759.19441514,0.00010552,2]
[360528866,1746845438259,-1200.0,0.00010565,2]
[360528867,1746845438269,-1759.19441514,0.00010566,2]
[360528868,1746845438278,-151.0,0.0001058,2]
[360528869,1746845438287,-151.0,0.0001058,2]
[360528870,1746845438296,-1759.19441514,0.0001058,2]
[360528871,1746845438306,-201.98228,0.0001058,2]
[360528872,1746845438315,-2917.6086299,0.0001059,2]
[360528909,1746845440304,-614.81177413,0.0001059,2]
[360528911,1746845440313,-1759.19441514,0.00010594,2]
[360528913,1746845440322,-14850.56897963,0.00010638,2]
[360528915,1746845440332,-153.093158,0.00010638,2]
[360528917,1746845440341,-151.0,0.00010638,2]
[360528919,1746845440350,-151.75907,0.00010638,2]
[360528921,1746845440359,-168.659346,0.00010638,2]
[360528923,1746845440369,-152.246237,0.00010638,2]
[360528925,1746845440378,-168.659346,0.00010638,2]
[360528927,1746845440387,-153.079447,0.00010638,2]
[360528928,1746845440396,-151.0,0.00010638,2]
[360528929,1746845440406,-888.0259211,0.0001064,2]
[360528930,1746845440415,-160.0,0.00010665,2]
[360528931,1746845440424,-160.0,0.00010665,2]
[360528932,1746845440433,-842.28079861,0.00010665,2]
[360528933,1746845440442,-422.10928827,0.00010665,2]
[360528934,1746845440452,-160.0,0.00010665,2]
[360528935,1746845440461,-160.0,0.00010665,2]
[360528936,1746845440471,-160.0,0.00010665,2]
[360528937,1746845440480,-593.33762819,0.00010673,2]
[360528938,1746845440489,-368.173296,0.00010673,2]
[360528939,1746845440499,-314.64919127,0.00010673,2]
[360528940,1746845440508,-504.06764779,0.00010673,2]
[360528941,1746845440517,-448.0829141,0.00010673,2]
[360528942,1746845440528,-178.36608331,0.00010673,2]
[360528943,1746845440538,-500.0,0.00010673,2]
[360528944,1746845440548,-500.0,0.00010673,2]
[360528945,1746845440558,-500.70476671,0.00010673,2]
[360528946,1746845440567,-501.26691918,0.00010673,2]
[360528947,1746845440577,-501.02397829,0.00010673,2]
[360528948,1746845440587,-500.0,0.00010673,2]
[360528949,1746845440596,-500.0,0.00010673,2]
[360528950,1746845440606,-500.0,0.00010673,2]
[360528951,1746845440615,-500.0,0.00010673,2]
[360528952,1746845440624,-501.89211473,0.00010673,2]
[360528953,1746845440634,-503.93562942,0.00010673,2]
[360528954,1746845440643,-431.40675033,0.00010673,2]
[360528955,1746845440653,-500.0,0.00010673,2]
[360528956,1746845440662,-500.0,0.00010673,2]
[360528957,1746845440671,-504.64006366,0.00010673,2]
[360528958,1746845440680,-500.0,0.00010673,2]
[360528959,1746845440690,-500.0,0.00010673,2]
[360528960,1746845440700,-500.0,0.00010673,2]
[360528961,1746845440710,-156.640894,0.00010673,2]
[360528962,1746845440719,-168.659346,0.00010673,2]
[360528963,1746845440729,-168.659346,0.00010673,2]
[360528964,1746845440738,-151.0,0.00010673,2]
[360528965,1746845440747,-12617.32522221,0.00010683,2]
[360528966,1746845440756,-160.0,0.00010683,2]
[360528967,1746845440775,-314.10967717,0.00010683,2]
[360528968,1746845440786,-160.0,0.00010683,2]
[360528969,1746845440796,-212.1195172,0.00010683,2]
[360528970,1746845440806,-406.983096,0.00010683,2]
[360528971,1746845440816,-151.0,0.00010683,2]
[360528972,1746845440826,-158.291907,0.00010683,2]
[360528973,1746845440836,-168.659346,0.00010683,2]
[360528974,1746845440846,-168.659346,0.00010683,2]
[360528975,1746845440856,-151.0,0.00010683,2]
[360528976,1746845440866,-151.0,0.00010684,2]
[360528977,1746845440877,-151.0,0.00010684,2]
[360528978,1746845440887,-151.952778,0.00010689,2]
[360528979,1746845440896,-152.273465,0.00010689,2]
[360528980,1746845440906,-151.0,0.00010689,2]
[360528981,1746845440916,-406.983096,0.00010689,2]
[360528982,1746845440925,-151.0,0.00010689,2]
[360528983,1746845441086,-151.0,0.00010689,2]
[360528984,1746845441097,-168.659346,0.00010689,2]
[360528985,1746845441107,-168.659346,0.00010689,2]
[360528986,1746845441116,-178.873026,0.00010689,2]
[360528987,1746845441125,-193433.03558268,0.00010689,2]
[360528988,1746845441244,-50.19583967,0.00010689,2]
[360529574,1746846401750,-286.8839628,8.334e-05,2]
[360529575,1746846408455,-152.92905861,8.334e-05,2]
[360529576,1746846418497,-153.95982647,8.334e-05,2]
[360529577,1746846434470,-151.0,8.333e-05,2]
[360529578,1746846448444,-149.0,8.333e-05,2]
[360529579,1746846448466,-122.80629526,8.334e-05,2]
[360529580,1746846463379,-277.44769808,8.25e-05,2]
[360529581,1746846479113,-92.26107839,8.25e-05,2]
[360529582,1746846479136,-110.44405136,8.334e-05,2]
[360529583,1746846493508,-282.01210658,8.334e-05,2]
[360529584,1746846508422,-181.41652582,8.334e-05,2]
[360529586,1746846523561,-310.29486185,8.333e-05,2]
[360529587,1746846538419,-83.44299063,8.333e-05,2]
[360529588,1746846538444,-322.09895497,8.333e-05,2]
[360529597,1746846554703,-172.42093506,8.332e-05,2]
[360529598,1746846568407,-127.57906494,8.332e-05,2]
[360529599,1746846568430,-40.7625626,8.333e-05,2]
[360529604,1746846583425,-137.13848243,8.333e-05,2]
[360529605,1746846583449,-211.33230852,8.333e-05,2]
[360529606,1746846598408,-221.89126153,8.333e-05,2]
[360529610,1746846613351,-300.0,8.332e-05,2]
[360529611,1746846613393,-56.61546839,8.332e-05,2]
[360529612,1746846628479,-243.38453161,8.332e-05,2]
[360529613,1746846628504,-126.2586593,8.332e-05,2]
[360529656,1746846632278,-173.7413407,8.332e-05,2]
[360529659,1746846632288,-300.0,8.332e-05,2]
[360529661,1746846632298,-1200.0,8.332e-05,2]
[360529663,1746846632307,-300.0,8.332e-05,2]
[360529664,1746846632316,-500.0,8.333e-05,2]
[360529666,1746846632326,-500.0,8.333e-05,2]
[360529668,1746846632336,-500.0,8.333e-05,2]
[360529670,1746846632345,-500.0,8.333e-05,2]
[360529672,1746846632355,-500.0,8.333e-05,2]
[360529674,1746846632364,-500.0,8.333e-05,2]
[360529676,1746846632374,-500.0,8.333e-05,2]
[360529678,1746846632383,-500.0,8.333e-05,2]
[360529680,1746846632392,-500.0,8.333e-05,2]
[360529682,1746846632402,-342.93416526,8.333e-05,2]
[360529684,1746846632414,-423.40000343,8.333e-05,2]
[360529686,1746846632423,-500.0,8.333e-05,2]
[360529688,1746846632433,-500.0,8.333e-05,2]
[360529690,1746846632441,-500.0,8.333e-05,2]
[360529692,1746846632450,-500.0,8.333e-05,2]
[360529694,1746846632462,-500.0,8.333e-05,2]
[360529697,1746846632472,-500.0,8.333e-05,2]
[360529700,1746846632481,-500.0,8.333e-05,2]
[360529703,1746846632492,-500.0,8.333e-05,2]
[360529705,1746846632502,-500.0,8.333e-05,2]
[360529707,1746846632513,-500.0,8.333e-05,2]
[360529709,1746846632523,-500.0,8.333e-05,2]
[360529712,1746846632532,-500.0,8.333e-05,2]
[360529715,1746846632543,-500.0,8.333e-05,2]
[360529717,1746846632552,-317.48489811,8.333e-05,2]
[360529719,1746846632561,-500.0,8.333e-05,2]
[360529721,1746846632570,-500.0,8.333e-05,2]
[360529722,1746846632580,-500.0,8.333e-05,2]
[360529724,1746846632589,-500.0,8.333e-05,2]
[360529726,1746846632599,-500.0,8.333e-05,2]
[360529727,1746846632609,-500.0,8.333e-05,2]
[360529728,1746846632618,-500.0,8.333e-05,2]
[360529729,1746846632627,-500.0,8.333e-05,2]
[360529730,1746846632636,-500.0,8.333e-05,2]
[360529731,1746846632646,-500.0,8.333e-05,2]
[360529732,1746846632655,-500.0,8.333e-05,2]
[360529733,1746846632664,-500.0,8.333e-05,2]
[360529734,1746846632673,-500.0,8.333e-05,2]
[360529735,1746846632683,-500.0,8.333e-05,2]
[360529736,1746846632692,-500.0,8.333e-05,2]
[360529737,1746846632701,-500.0,8.333e-05,2]
[360529738,1746846632711,-500.0,8.333e-05,2]
[360529739,1746846632720,-500.0,8.333e-05,2]
[360529740,1746846632729,-500.0,8.333e-05,2]
[360529741,1746846632739,-500.0,8.333e-05,2]
[360529742,1746846632748,-500.0,8.333e-05,2]
[360529743,1746846632758,-500.0,8.333e-05,2]
[360529744,1746846632767,-500.0,8.333e-05,2]
[360529745,1746846632776,-435.27609979,8.333e-05,2]
[360529746,1746846632787,-500.0,8.333e-05,2]
[360529747,1746846632797,-500.0,8.333e-05,2]
[360529748,1746846632807,-500.0,8.333e-05,2]
[360529749,1746846632817,-500.0,8.333e-05,2]
[360529750,1746846632826,-9611.57517559,8.334e-05,2]
[360529751,1746846632839,-4837.97443292,8.334e-05,2]
[360529752,1746846632861,-275.61649673,8.332e-05,2]
[360529753,1746846632870,-4549.3993992,8.334e-05,2]
[360529754,1746846633460,-210.1355447,8.332e-05,2]
[360529762,1746846638185,-289.8644553,8.332e-05,2]
[360529764,1746846638196,-500.0,8.332e-05,2]
[360529766,1746846638206,-500.0,8.332e-05,2]
[360529768,1746846638216,-500.0,8.332e-05,2]
[360529770,1746846638225,-500.0,8.332e-05,2]
[360529772,1746846638235,-500.0,8.332e-05,2]
[360529774,1746846638244,-500.0,8.332e-05,2]
[360529776,1746846638254,-500.0,8.332e-05,2]
[360529778,1746846638264,-500.0,8.332e-05,2]
[360529781,1746846638274,-500.0,8.332e-05,2]
[360529783,1746846638284,-500.0,8.332e-05,2]
[360529785,1746846638293,-500.0,8.332e-05,2]
[360529787,1746846638303,-500.0,8.332e-05,2]
[360529789,1746846638313,-500.0,8.332e-05,2]
[360529791,1746846638323,-500.0,8.332e-05,2]
[360529793,1746846638332,-4610.59916539,8.334e-05,2]
[360529795,1746846638342,-153.76033597,8.86e-05,2]
[360529797,1746846638351,-169.68775331,8.86e-05,2]
[360529799,1746846638364,-11448.08585745,9.04e-05,2]
[360529801,1746846638387,-12122.70210198,9.04e-05,2]
[360529803,1746846638398,-4594.42490134,9.04e-05,2]
[360529806,1746846638411,-4532.72215382,9.04e-05,2]
[360529808,1746846638425,-301.0,9.165e-05,2]
[360529810,1746846638436,-420.0,9.165e-05,2]
[360529812,1746846638446,-1200.0,9.165e-05,2]
[360529814,1746846638457,-420.0,9.165e-05,2]
[360529816,1746846638466,-1280.2107971,9.323e-05,2]
[360529818,1746846638476,-151.47475377,9.642e-05,2]
[360529820,1746846638486,-2839.64877483,9.651e-05,2]
[360529930,1746846640764,-13.13077105,9.651e-05,2]
[360530089,1746846646769,-213.71111149,8.331e-05,2]
[360530090,1746846646792,-48.88579217,8.331e-05,2]
[360530091,1746846658448,-451.11420783,8.331e-05,2]
[360530092,1746846658470,-89.67776935,8.331e-05,2]
[360530093,1746846673576,-410.32223065,8.331e-05,2]
[360530094,1746846673610,-14.97406763,8.331e-05,2]
[360530095,1746846688847,-170.38453363,8.331e-05,2]
[360530096,1746846703496,-314.64139874,8.331e-05,2]
[360530097,1746846703520,-39.96188178,8.331e-05,2]
[360530100,1746846719647,-300.0,8.331e-05,2]
[360530101,1746846735242,-160.03811822,8.331e-05,2]
[360530102,1746846735266,-139.96188178,8.331e-05,2]
[360530103,1746846749766,-182.06551844,8.331e-05,2]
[360530106,1746846756021,-317.16826621,8.33e-05,2]
[360530107,1746846756044,-4.95634491,8.331e-05,2]
[360530111,1746846763548,-295.04365509,8.331e-05,2]
[360530123,1746847739055,-329.37804039,8.87e-05,2]
[360530125,1746847753488,-164.83253891,8.87e-05,2]
[360530144,1746847831990,-331.74570424,8.463e-05,2]
[360530186,1746847832564,-6434.18517814,8.463e-05,2]
[360530263,1746847840775,-27.08145378,8.463e-05,2]
[360530282,1746847843186,-285.09622462,8.463e-05,2]
[360530349,1746847859157,-254.44316651,8.463e-05,2]
[360530350,1746847873964,-292.41884066,8.462e-05,2]
[360530351,1746847888458,-7.58115934,8.462e-05,2]
[360530352,1746847888480,-314.10431254,8.463e-05,2]
[360530353,1746847904073,-260.63363082,8.463e-05,2]
[360530354,1746847918905,-356.67798218,8.463e-05,2]
[360530355,1746847933436,-268.25425489,8.462e-05,2]
[360530358,1746847948459,-31.74574511,8.462e-05,2]
[360530359,1746847948482,-142.32552681,8.463e-05,2]
[360530360,1746847963413,-252.7761797,8.462e-05,2]
[360530362,1746847969496,-176.51763205,8.462e-05,2]
[360530363,1746847978737,-70.70618825,8.462e-05,2]
[360530364,1746847978761,-348.02917236,8.462e-05,2]
[360530365,1746847978786,-72.10199229,8.462e-05,2]
[360530366,1746847994146,-300.0,8.461e-05,2]
[360530367,1746847994171,-50.57949661,8.462e-05,2]
[360530372,1746848003626,-359.86097908,8.462e-05,2]
[360530374,1746848008619,-17.45753202,8.462e-05,2]
[360530375,1746848008642,-179.47174124,8.462e-05,2]
[360530376,1746848024071,-240.04086051,8.297e-05,2]
[360530378,1746848038465,-163.55939619,8.297e-05,2]
[360530379,1746848053407,-166.12905078,8.12e-05,2]
[360530380,1746848068485,-163.66837038,8.12e-05,2]
[360530382,1746848080326,-177.79742116,8.12e-05,2]
[360530385,1746848085567,-382.63843984,8.12e-05,2]
[360530387,1746848090971,-154.00090744,8.12e-05,2]
[360530388,1746848099045,-383.32630795,8.12e-05,2]
[360530390,1746848103079,-2704.0,8.12e-05,2]
[360530392,1746848114173,-8.74037265,8.12e-05,2]
[360530393,1746848114202,-170.71040394,8.297e-05,2]
[360530394,1746848128468,-337.86058436,8.297e-05,2]
[360530397,1746848134471,-212.33126262,8.297e-05,2]
[360530398,1746848143961,-165.72350157,8.297e-05,2]
[360530399,1746848158521,-244.06422832,8.119e-05,2]
[360530400,1746848159166,-244.06422832,8.119e-05,2]
[360530402,1746848173838,-300.0,8.118e-05,2]
[360530403,1746848173894,-5.85782687,8.119e-05,2]
[360530404,1746848173917,-294.14217313,8.119e-05,2]
[360530405,1746848188492,-205.85782687,8.119e-05,2]
[360530406,1746848188517,-89.03603374,8.119e-05,2]
[360530407,1746848203446,-205.10613939,8.119e-05,2]
[360530415,1746848219239,-205.85782687,8.119e-05,2]
[360530416,1746848219263,-84.43708926,8.119e-05,2]
[360530418,1746848222361,300.0,8.118e-05,2]
[360530421,1746848230513,-415.56291074,8.119e-05,2]
[360530422,1746848230536,-47.20274943,8.119e-05,2]
[360530423,1746848233428,-294.24922224,8.119e-05,2]
[360530424,1746848249149,-158.54802833,8.119e-05,2]
[360530425,1746848249248,-135.70119391,8.119e-05,2]
[360530428,1746848253974,-364.29880609,8.119e-05,2]
[360530429,1746848253999,-105.03925603,8.119e-05,2]
[360530431,1746848263477,-394.96074397,8.119e-05,2]
[360530432,1746848263500,-28.16722238,8.119e-05,2]
[360530433,1746848278396,-216.58296115,8.119e-05,2]
[360530434,1746848278419,-5.42302359,8.119e-05,2]
[360530435,1746848283145,300.0,8.118e-05,2]
[360530436,1746848294200,-269.11402872,8.119e-05,2]
[360530438,1746848309085,-225.46294769,8.119e-05,2]
[360530439,1746848309111,-101.44646925,8.119e-05,2]
[360530441,1746848315453,-172.9028648,8.119e-05,2]
[360530442,1746848323499,-165.38507269,8.119e-05,2]
[360530444,1746848338417,-60.26559326,8.119e-05,2]
[360530445,1746848338440,-331.80799788,8.119e-05,2]
[360530446,1746848353430,-168.19200212,8.119e-05,2]
[360530447,1746848353453,-22.67034325,8.119e-05,2]
[360530448,1746848362728,500.0,8.118e-05,2]
[360530449,1746848362765,608.40177619,8.118e-05,2]
[360530450,1746848362798,500.0,8.118e-05,2]
[360530451,1746848362840,500.0,8.118e-05,2]
[360530452,1746848362887,500.0,8.118e-05,2]
[360530453,1746848363083,24.59822381,8.118e-05,2]
[360530454,1746848368397,-199.34259382,8.118e-05,2]
[360530455,1746848383964,-201.47759625,8.118e-05,2]
[360530464,1746848399083,-74.58158612,8.118e-05,2]
[360530465,1746848399124,-215.66745462,8.118e-05,2]
[360530466,1746848402430,271.0,8.117e-05,2]
[360530467,1746848402460,300.0,8.117e-05,2]
[360530468,1746848409060,1200.0,8.117e-05,2]
[360530469,1746848413377,-182.08292402,8.118e-05,2]
[360530471,1746848422265,300.0,8.117e-05,2]
[360530472,1746848428394,-102.24962136,8.118e-05,2]
[360530473,1746848428416,-143.89091064,8.118e-05,2]
[360530474,1746848433502,118.0,8.117e-05,2]
[360530475,1746848443506,-283.54693375,8.117e-05,2]
[360530476,1746848458445,-98.45306625,8.117e-05,2]
[360530477,1746848458468,-75.77534564,8.117e-05,2]
[360530492,1746848470367,-253.19013171,8.116e-05,2]
[360530497,1746848471456,-46.80986829,8.116e-05,2]
[360530498,1746848471478,-525.13259654,8.117e-05,2]
[360530499,1746848471501,-500.0,8.117e-05,2]
[360530500,1746848471524,-500.0,8.117e-05,2]
[360530501,1746848471546,-500.0,8.117e-05,2]
[360530502,1746848471569,-500.0,8.117e-05,2]
[360530504,1746848471592,-451.61988718,8.117e-05,2]
[360530505,1746848471616,-500.0,8.117e-05,2]
[360530506,1746848471641,-616.44332986,8.117e-05,2]
[360530507,1746848471663,-500.0,8.117e-05,2]
[360530508,1746848471686,-500.0,8.117e-05,2]
[360530509,1746848471709,-500.0,8.117e-05,2]
[360530510,1746848471730,-500.0,8.117e-05,2]
[360530511,1746848471753,-500.0,8.117e-05,2]
[360530512,1746848471775,-364.14207805,8.117e-05,2]
[360530513,1746848471797,-500.0,8.117e-05,2]
[360530514,1746848471818,-283.54693375,8.117e-05,2]
[360530515,1746848471840,-274.47783813,8.117e-05,2]
[360530516,1746848471862,-174.22841189,8.117e-05,2]
[360530517,1746848471885,-518.54926112,8.295e-05,2]
[360530518,1746848471907,-185.51953662,8.295e-05,2]
[360530519,1746848471931,-500.0,8.295e-05,2]
[360530520,1746848471955,-500.0,8.295e-05,2]
[360530521,1746848471977,-500.0,8.295e-05,2]
[360530522,1746848471999,-500.0,8.295e-05,2]
[360530523,1746848472026,-500.0,8.295e-05,2]
[360530524,1746848472049,-500.0,8.295e-05,2]
[360530525,1746848472070,-521.8937647,8.295e-05,2]
[360530526,1746848472094,-500.0,8.295e-05,2]
[360530528,1746848472116,-500.0,8.295e-05,2]
[360530529,1746848472140,-500.0,8.295e-05,2]
[360530531,1746848472162,-500.0,8.295e-05,2]
[360530532,1746848472303,-500.0,8.295e-05,2]
[360530533,1746848472329,-500.0,8.295e-05,2]
[360530534,1746848472352,-500.0,8.295e-05,2]
[360530536,1746848472376,-500.0,8.295e-05,2]
[360530537,1746848472398,-500.0,8.295e-05,2]
[360530538,1746848472420,-500.0,8.295e-05,2]
[360530539,1746848472443,-500.0,8.295e-05,2]
[360530540,1746848472467,-500.0,8.295e-05,2]
[360530541,1746848472489,-500.0,8.295e-05,2]
[360530542,1746848472512,-400.0,8.295e-05,2]
[360530543,1746848472535,-500.0,8.295e-05,2]
[360530544,1746848472557,-500.0,8.295e-05,2]
[360530545,1746848472579,-599.26371083,8.296e-05,2]
[360530546,1746848472601,-1088.82017811,8.297e-05,2]
[360530548,1746848472624,-16493.70682036,8.463e-05,2]
[360530549,1746848472646,-503.62417097,8.922e-05,2]
[360530550,1746848472669,-420.0,8.928e-05,2]
[360530551,1746848472691,-1680.0,8.929e-05,2]
[360530552,1746848472713,-420.0,8.929e-05,2]
[360530553,1746848472734,-776.4384937,8.945e-05,2]
[360530554,1746848472756,-250.33257292,9.018e-05,2]
[360530555,1746848472778,-500.0,9.392e-05,2]
[360530556,1746848472800,-587.0,9.82e-05,2]
[360530557,1746848472823,-2351.0,9.822e-05,2]
[360530558,1746848472846,-587.0,9.822e-05,2]
[360530559,1746848472867,-500.0,9.862e-05,2]
[360530560,1746848472891,-1387.44352432,0.0001,2]
[360530561,1746848472916,-3109.82690213,0.000101,2]
[360530562,1746848472942,-3109.82690213,0.000101,2]
[360530563,1746848472971,-3109.82690213,0.000101,2]
[360530564,1746848472995,-3109.82690213,0.000101,2]
[360530565,1746848473022,-3109.82690213,0.000101,2]
[360530566,1746848473051,-3109.82690213,0.000101,2]
[360530567,1746848473076,-3109.82690213,0.000101,2]
[360530568,1746848473103,-3109.82690213,0.000101,2]
[360530569,1746848473128,-3109.82690213,0.000101,2]
[360530570,1746848473150,-1387.44352429,0.00010149,2]
[360530571,1746848473173,-160.0,0.00010277,2]
[360530572,1746848473195,-12619.28597579,0.00010277,2]
[360530573,1746848473224,-160.0,0.00010277,2]
[360530574,1746848473247,-160.0,0.00010277,2]
[360530575,1746848473272,-422.13686889,0.00010277,2]
[360530576,1746848473294,-160.0,0.00010277,2]
[360530577,1746848473316,-314.1579823,0.00010277,2]
[360530578,1746848473337,-160.0,0.00010277,2]
[360530579,1746848473360,-842.34118046,0.00010277,2]
[360530580,1746848473383,-212.13671436,0.00010277,2]
[360530581,1746848473404,-160.0,0.00010277,2]
[360530582,1746848473427,-160.0,0.00010277,2]
[360530583,1746848473449,-160.0,0.00010277,2]
[360530584,1746848473471,-160.0,0.00010277,2]
[360530585,1746848473495,-3109.82690213,0.00010279,2]
[360530586,1746848473517,-404.0,0.00010285,2]
[360530587,1746848473540,-1387.44352429,0.00010297,2]
[360530588,1746848473565,-1387.44352429,0.00010446,2]
[360530589,1746848473590,-3109.82690213,0.0001051,2]
[360530590,1746848473613,-150.029,0.0001058,2]
[360530591,1746848473639,-10651.12230792,0.00010582,2]
[360530592,1746848473661,-2894.83519373,0.00010582,2]
[360530593,1746848473685,-151.0,0.00010582,2]
[360530594,1746848473709,-151.0,0.00010582,2]
[360530595,1746848473734,-151.0,0.00010582,2]
[360530596,1746848473758,-158.661526,0.00010582,2]
[360530597,1746848473782,-153.175494,0.00010582,2]
[360530598,1746848473805,-151.293871,0.00010582,2]
[360530599,1746848473829,-1387.44352429,0.00010594,2]
[360530600,1746848473855,-710.4207369,0.00010635,2]
[360530601,1746848473878,-158.54015072,0.00010673,2]
[360530619,1746848584162,197.0,8e-05,2]
[360530620,1746848585741,197.0,8e-05,2]
[360530673,1746849032637,-300.0,9.499e-05,2]
[360530675,1746849032648,-951.0,9.499e-05,2]
[360530677,1746849032657,-300.0,9.499e-05,2]
[360530680,1746849032667,-27758.0,9.5e-05,2]
[360530683,1746849032677,-277.75176198,9.523e-05,2]
[360530686,1746849032687,-2068.0,9.623e-05,2]
[360530687,1746849032697,-250.0,9.623e-05,2]
[360530688,1746849032706,-1969.55703818,0.000101,2]
[360530689,1746849032715,-1969.55703801,0.000101,2]
[360530691,1746849032726,-1969.55703801,0.000101,2]
[360530692,1746849032735,-1969.55703801,0.000101,2]
[360530693,1746849032745,-1000.0,0.00010178,2]
[360530694,1746849032755,-32022.72502808,0.00010178,2]
[360530697,1746849038585,-1000.0,9.399e-05,2]
[360530698,1746849038597,-4785.34441045,0.00010178,2]
[360530742,1746849043725,-292.82684301,0.00010076,2]
[360530743,1746849043735,-10558.23755858,0.00010178,2]
[360530744,1746849043745,-1969.55703801,0.00010245,2]
[360530745,1746849043755,-1969.55703801,0.00010431,2]